[Event "7° Rencontres Internationales des Echecs Francophones"]
[Site "PARIS, France"]
[Date "2019.08.10"]
[Round "6.8"]
[White "Shchekachev, Andrei"]
[Black "Mouhamad, Joachin"]
[Result "1-0"]
[TimeControl "90'+30' + 30seconds/move"]
[WhiteElo "2446"]
[BlackElo "2227"]

1. Nf3 {[%clk 00:05:03]} {[%emt 00:06:19]} c5 {[%clk 00:05:03]} {[%emt
00:00:03]} 2. e3 {[%clk 00:05:03]} {[%emt 00:00:07]} g6 {[%clk 00:05:02]}
{[%emt 00:00:04]} 3. c4 {[%clk 00:05:03]} {[%emt 00:00:03]} Bg7 {[%clk
00:05:01]} {[%emt 00:00:03]} 4. Be2 {[%clk 00:04:51]} {[%emt 00:00:14]} Nf6
{[%clk 00:04:56]} {[%emt 00:00:09]} 5. O-O {[%clk 00:04:50]} {[%emt 00:00:04]}
O-O {[%clk 00:04:56]} {[%emt 00:00:03]} 6. b3 {[%clk 00:04:51]} {[%emt
00:00:03]} Ne4 {[%clk 00:04:42]} {[%emt 00:00:16]} 7. d4 {[%clk 00:04:53]}
{[%emt 00:00:02]} cxd4 {[%clk 00:04:30]} {[%emt 00:00:15]} 8. Nxd4 {[%clk
00:04:41]} {[%emt 00:00:14]} d5 {[%clk 00:04:12]} {[%emt 00:00:22]} 9. Bf3
{[%clk 00:04:38]} {[%emt 00:00:06]} Nf6 {[%clk 00:03:56]} {[%emt 00:00:19]} 10.
cxd5 {[%clk 00:04:23]} {[%emt 00:00:18]} Nxd5 {[%clk 00:03:57]} {[%emt
00:00:01]} 11. Bb2 {[%clk 00:04:23]} {[%emt 00:00:03]} Re8 {[%clk 00:03:36]}
{[%emt 00:00:25]} 12. Nd2 {[%clk 00:04:10]} {[%emt 00:00:16]} e5 {[%clk
00:02:17]} {[%emt 00:01:22]} 13. Bxd5 {[%clk 00:03:32]} {[%emt 00:00:42]} Qxd5
{[%clk 00:02:12]} {[%emt 00:00:08]} 14. e4 {[%clk 00:03:33]} {[%emt 00:00:02]}
Qd8 {[%clk 00:02:03]} {[%emt 00:00:12]} 15. Ne2 {[%clk 00:03:20]} {[%emt
00:00:16]} Nc6 {[%clk 00:02:05]} {[%emt 00:00:01]} 16. Nc4 {[%clk 00:03:13]}
{[%emt 00:00:10]} Nd4 {[%clk 00:01:21]} {[%emt 00:00:47]} 17. Nxd4 {[%clk
00:03:02]} {[%emt 00:00:14]} exd4 {[%clk 00:01:23]} {[%emt 00:00:01]} 18. Qd3
{[%clk 00:03:01]} {[%emt 00:00:03]} f5 {[%clk 00:01:11]} {[%emt 00:00:15]} 19.
f3 {[%clk 00:02:56]} {[%emt 00:00:08]} fxe4 {[%clk 00:00:45]} {[%emt 00:00:29]}
20. fxe4 {[%clk 00:02:57]} {[%emt 00:00:01]} Qe7 {[%clk 00:00:25]} {[%emt
00:00:23]} 21. Rae1 {[%clk 00:02:45]} {[%emt 00:00:14]} Be6 {[%clk 00:00:20]}
{[%emt 00:00:09]} 22. e5 {[%clk 00:02:26]} {[%emt 00:00:22]} Bd5 {[%clk
00:00:04]} {[%emt 00:00:19]} 23. Qxd4 {[%clk 00:02:08]} {[%emt 00:00:21]} Bc6
{[%clk 00:00:04]} {[%emt 00:00:04]} 24. Nd6 {[%clk 00:01:59]} {[%emt 00:00:12]}
Rad8 {[%clk 00:00:06]} 25. Qc4+ {[%clk 00:01:56]} {[%emt 00:00:05]} Kh8 {[%clk
00:00:00]} {[%emt 00:00:03]} 1-0

[Event "7° Rencontres Internationales des Echecs Francophones"]
[Site "PARIS, France"]
[Date "2019.08.10"]
[Round "6.10"]
[White "Dardha, Daniel"]
[Black "Meftahi, Houssem"]
[Result "1-0"]
[TimeControl "90'+30' + 30seconds/move"]
[WhiteElo "2390"]
[BlackElo "2128"]

1. c4 {[%clk 00:05:04]} e6 {[%clk 00:05:04]} {[%emt 00:00:03]} 2. d4 {[%clk
00:05:06]} {[%emt 00:00:02]} d5 {[%clk 00:05:07]} {[%emt 00:00:02]} 3. Nc3 c6 4.
cxd5 {[%clk 00:05:08]} {[%emt 00:00:02]} exd5 {[%clk 00:05:11]} 5. Qc2 {[%clk
00:05:09]} {[%emt 00:00:04]} Nf6 {[%clk 00:05:07]} {[%emt 00:00:06]} 6. Bg5
{[%clk 00:05:10]} {[%emt 00:00:01]} Be7 {[%clk 00:05:09]} 7. e3 {[%clk
00:05:12]} Nbd7 {[%clk 00:05:04]} {[%emt 00:00:09]} 8. Bd3 {[%clk 00:05:14]}
{[%emt 00:00:01]} Nh5 {[%clk 00:05:05]} {[%emt 00:00:02]} 9. Bxe7 {[%clk
00:05:13]} {[%emt 00:00:03]} Qxe7 {[%clk 00:05:07]} 10. Nge2 {[%clk 00:05:15]}
{[%emt 00:00:02]} g6 {[%clk 00:05:06]} {[%emt 00:00:04]} 11. O-O {[%clk
00:05:15]} {[%emt 00:00:02]} O-O {[%clk 00:05:08]} {[%emt 00:00:03]} 12. Rae1
{[%clk 00:05:17]} Ndf6 {[%clk 00:05:03]} {[%emt 00:00:08]} 13. Qc1 {[%clk
00:05:12]} {[%emt 00:00:08]} Ng7 {[%clk 00:05:01]} {[%emt 00:00:05]} 14. f3
{[%clk 00:05:13]} {[%emt 00:00:02]} Bf5 {[%clk 00:04:54]} {[%emt 00:00:10]} 15.
e4 {[%clk 00:05:02]} {[%emt 00:00:14]} dxe4 {[%clk 00:04:02]} {[%emt 00:00:56]}
16. fxe4 {[%clk 00:05:03]} {[%emt 00:00:01]} Be6 {[%clk 00:02:53]} {[%emt
00:01:13]} 17. Qf4 {[%clk 00:04:47]} {[%emt 00:00:18]} Nd7 {[%clk 00:02:23]}
{[%emt 00:00:34]} 18. Kh1 {[%clk 00:04:24]} {[%emt 00:00:26]} Nb6 {[%clk
00:02:25]} 19. e5 {[%clk 00:03:49]} {[%emt 00:00:38]} Bd5 {[%clk 00:00:58]}
{[%emt 00:01:30]} 20. Ng3 {[%clk 00:03:35]} {[%emt 00:00:17]} Ne6 {[%clk
00:00:59]} {[%emt 00:00:03]} 21. Qf2 {[%clk 00:03:19]} {[%emt 00:00:18]} Qh4
{[%clk 00:00:55]} {[%emt 00:00:07]} 22. Nce4 {[%emt 00:00:10]} Bxe4 {[%clk
00:00:49]} {[%emt 00:00:05]} 23. Rxe4 {[%clk 00:03:11]} {[%emt 00:00:09]} Qe7
{[%clk 00:00:50]} {[%emt 00:00:02]} 24. Rg4 {[%clk 00:02:58]} {[%emt 00:00:16]}
Ng7 {[%clk 00:00:27]} {[%emt 00:00:26]} 25. Ne4 {[%clk 00:02:53]} {[%emt
00:00:08]} Nd5 {[%clk 00:00:27]} {[%emt 00:00:03]} 26. Nf6+ {[%clk 00:02:53]}
{[%emt 00:00:02]} Kh8 {[%emt 00:00:21]} 27. Rh4 {[%emt 00:00:17]} Nh5 {[%clk
00:00:08]} {[%emt 00:00:04]} 28. Rxh5 {[%clk 00:02:31]} {[%emt 00:00:12]} gxh5
{[%clk 00:00:06]} {[%emt 00:00:05]} 29. Qf5 {[%emt 00:00:09]} 1-0

[Event "7° Rencontres Internationales des Echecs Francophones"]
[Site "PARIS, France"]
[Date "2019.08.10"]
[Round "6.3"]
[White "Sebag, Marie"]
[Black "Aloma Vidal, Robert"]
[Result "1/2-1/2"]
[TimeControl "90'+30' + 30seconds/move"]
[WhiteElo "2494"]
[BlackElo "2417"]

1. e4 {[%clk 00:05:04]} {[%emt 00:01:56]} c6 {[%clk 00:05:06]} 2. d4 {[%clk
00:05:04]} {[%emt 00:00:03]} d5 {[%clk 00:05:08]} 3. exd5 {[%clk 00:05:06]}
{[%emt 00:00:04]} cxd5 {[%clk 00:05:10]} 4. c3 {[%clk 00:05:08]} Nc6 {[%clk
00:05:11]} {[%emt 00:00:03]} 5. Bd3 {[%clk 00:05:09]} {[%emt 00:00:02]} e5
{[%clk 00:04:51]} {[%emt 00:00:23]} 6. dxe5 {[%clk 00:04:55]} {[%emt 00:00:16]}
Nxe5 {[%clk 00:04:54]} 7. Nf3 {[%clk 00:04:51]} {[%emt 00:00:09]} Nxd3+ {[%clk
00:04:39]} {[%emt 00:00:18]} 8. Qxd3 {[%clk 00:04:52]} {[%emt 00:00:02]} Nf6
{[%clk 00:04:40]} {[%emt 00:00:02]} 9. O-O {[%clk 00:04:50]} {[%emt 00:00:05]}
Be7 {[%clk 00:04:42]} 10. Bg5 {[%clk 00:04:33]} {[%emt 00:00:20]} O-O {[%clk
00:04:42]} {[%emt 00:00:04]} 11. Nbd2 {[%clk 00:04:33]} {[%emt 00:00:03]} Bg4
{[%clk 00:04:31]} {[%emt 00:00:13]} 12. Ne5 {[%clk 00:03:49]} {[%emt 00:00:47]}
Be6 {[%clk 00:04:23]} {[%emt 00:00:12]} 13. Rfe1 {[%clk 00:03:45]} {[%emt
00:00:06]} Re8 {[%clk 00:04:15]} {[%emt 00:00:12]} 14. Nb3 {[%clk 00:03:28]}
{[%emt 00:00:21]} Qb6 {[%clk 00:03:56]} {[%emt 00:00:21]} 15. Be3 {[%clk
00:03:12]} {[%emt 00:00:19]} Qc7 {[%clk 00:03:44]} {[%emt 00:00:16]} 16. Nf3
{[%clk 00:02:57]} {[%emt 00:00:18]} Bg4 {[%clk 00:03:36]} {[%emt 00:00:11]} 17.
Nfd4 {[%clk 00:02:36]} {[%emt 00:00:24]} a6 {[%clk 00:03:31]} {[%emt 00:00:08]}
18. f3 {[%clk 00:02:21]} {[%emt 00:00:18]} Bd7 {[%clk 00:03:14]} {[%emt
00:00:20]} 19. Nf5 {[%clk 00:02:11]} {[%emt 00:00:13]} Bf8 {[%clk 00:02:56]}
{[%emt 00:00:21]} 20. Bf2 {[%clk 00:01:35]} {[%emt 00:00:38]} Rxe1+ {[%clk
00:02:40]} {[%emt 00:00:20]} 21. Rxe1 {[%clk 00:01:37]} Re8 {[%clk 00:02:40]}
{[%emt 00:00:03]} 22. Rxe8 {[%clk 00:01:37]} {[%emt 00:00:04]} Bxe8 {[%clk
00:02:38]} {[%emt 00:00:05]} 23. Ne3 {[%clk 00:01:37]} {[%emt 00:00:03]} Bd6
{[%clk 00:02:33]} {[%emt 00:00:08]} 24. g3 {[%clk 00:01:33]} {[%emt 00:00:06]}
Bb5 {[%clk 00:02:12]} {[%emt 00:00:25]} 25. Qd2 {[%clk 00:01:32]} {[%emt
00:00:04]} Bc6 {[%clk 00:01:54]} {[%emt 00:00:21]} 26. Nf5 {[%clk 00:01:28]}
{[%emt 00:00:06]} Bf8 {[%clk 00:01:48]} {[%emt 00:00:09]} 27. Qg5 {[%clk
00:01:24]} {[%emt 00:00:07]} Kh8 {[%clk 00:01:29]} {[%emt 00:00:22]} 28. Bd4
{[%clk 00:01:19]} {[%emt 00:00:08]} Qd8 {[%clk 00:01:18]} {[%emt 00:00:15]} 29.
Bxf6 {[%clk 00:01:14]} {[%emt 00:00:07]} gxf6 {[%clk 00:01:19]} {[%emt
00:00:02]} 30. Qf4 {[%clk 00:01:14]} {[%emt 00:00:02]} Bd7 {[%clk 00:01:08]}
{[%emt 00:00:16]} 31. Nbd4 {[%clk 00:01:06]} {[%emt 00:00:11]} Be6 {[%clk
00:01:09]} {[%emt 00:00:01]} 32. Kg2 {[%clk 00:01:02]} {[%emt 00:00:07]} a5
{[%clk 00:00:57]} {[%emt 00:00:15]} 33. Ne3 {[%clk 00:00:49]} {[%emt 00:00:16]}
Bd6 {[%clk 00:00:47]} {[%emt 00:00:13]} 34. Qh4 {[%clk 00:00:48]} {[%emt
00:00:04]} Be5 {[%clk 00:00:37]} {[%emt 00:00:13]} 35. Nef5 {[%clk 00:00:37]}
{[%emt 00:00:15]} Qg8 {[%clk 00:00:20]} {[%emt 00:00:20]} 36. f4 {[%clk
00:00:35]} {[%emt 00:00:05]} Bxd4 {[%clk 00:00:19]} {[%emt 00:00:04]} 37. Nxd4
{[%clk 00:00:27]} {[%emt 00:00:10]} Qg6 {[%clk 00:00:20]} {[%emt 00:00:02]} 38.
Kf2 {[%clk 00:00:14]} {[%emt 00:00:16]} Kg7 {[%clk 00:00:21]} {[%emt 00:00:02]}
39. f5 {[%clk 00:00:15]} {[%emt 00:00:03]} Bxf5 {[%clk 00:00:23]} 40. Qf4
{[%clk 00:00:17]} Be4 {[%clk 00:00:24]} {[%emt 00:00:03]} 41. Qc7 {[%clk
00:00:18]} {[%emt 00:00:02]} Qh5 {[%clk 00:00:24]} {[%emt 00:00:03]} 42. h4
{[%clk 00:00:14]} {[%emt 00:00:06]} Qg4 {[%clk 00:00:23]} {[%emt 00:00:04]} 43.
Qf4 {[%clk 00:00:10]} {[%emt 00:00:08]} Qh3 {[%clk 00:00:23]} {[%emt 00:00:03]}
44. Ke3 {[%clk 00:00:11]} {[%emt 00:00:02]} Qg2 {[%clk 00:00:22]} {[%emt
00:00:03]} 45. Qg4+ {[%clk 00:00:13]} {[%emt 00:00:01]} Kf8 {[%clk 00:00:16]}
{[%emt 00:00:10]} 46. Qc8+ {[%clk 00:00:14]} {[%emt 00:00:02]} Kg7 {[%clk
00:00:17]} {[%emt 00:00:01]} 47. Qg4+ {[%clk 00:00:17]} Kf8 {[%clk 00:00:13]}
{[%emt 00:00:08]} 48. Qc8+ {[%clk 00:00:19]} Kg7 {[%clk 00:00:15]} 49. Qg4+
1/2-1/2



[ePGN "0.1;DGT LiveChess/2.2.4"]

[Event "7° Rencontres Internationales des Echecs Francophones"]
[Site "PARIS, France"]
[Date "2019.08.10"]
[Round "7.5"]
[White "Rakotomaharo, Fy Antenaina"]
[Black "Sebag, Marie"]
[Result "1-0"]
[TimeControl "90'+30' + 30seconds/move"]
[WhiteElo "2364"]
[BlackElo "2494"]

1. e4 {[%clk 00:05:04]} {[%emt 00:00:01]} c5 {[%clk 00:05:05]} 2. Nf3 {[%clk
00:05:06]} {[%emt 00:00:01]} d6 {[%clk 00:05:08]} 3. d4 {[%clk 00:05:07]}
{[%emt 00:00:02]} cxd4 {[%clk 00:05:10]} {[%emt 00:00:01]} 4. Nxd4 {[%clk
00:05:09]} Nf6 {[%clk 00:05:12]} 5. Nc3 {[%clk 00:05:12]} a6 {[%clk 00:05:14]}
{[%emt 00:00:02]} 6. h4 {[%clk 00:05:12]} {[%emt 00:00:02]} e5 {[%clk
00:05:02]} {[%emt 00:00:15]} 7. Nb3 {[%clk 00:05:13]} Be6 {[%clk 00:05:01]}
{[%emt 00:00:06]} 8. f4 {[%clk 00:05:14]} {[%emt 00:00:01]} b5 {[%clk
00:04:21]} {[%emt 00:00:43]} 9. f5 {[%clk 00:05:03]} {[%emt 00:00:13]} Bc8
{[%clk 00:04:17]} {[%emt 00:00:08]} 10. Bg5 {[%clk 00:05:03]} {[%emt 00:00:03]}
Nbd7 {[%clk 00:04:07]} {[%emt 00:00:13]} 11. a4 {[%clk 00:04:43]} {[%emt
00:00:23]} b4 {[%clk 00:03:58]} {[%emt 00:00:12]} 12. Nd5 {[%clk 00:04:45]}
{[%emt 00:00:01]} Bb7 {[%clk 00:04:00]} 13. Bc4 {[%clk 00:04:44]} {[%emt
00:00:04]} Rc8 {[%clk 00:03:19]} {[%emt 00:00:44]} 14. Qd3 {[%clk 00:04:34]}
{[%emt 00:00:12]} Be7 {[%clk 00:03:05]} {[%emt 00:00:17]} 15. Bxf6 {[%clk
00:03:55]} {[%emt 00:00:42]} Nxf6 {[%clk 00:02:57]} {[%emt 00:00:11]} 16. O-O-O
{[%clk 00:03:56]} {[%emt 00:00:01]} Nxd5 {[%clk 00:02:41]} {[%emt 00:00:20]} 17.
Bxd5 {[%clk 00:03:57]} {[%emt 00:00:02]} Bxd5 {[%clk 00:02:42]} {[%emt
00:00:02]} 18. Qxd5 {[%clk 00:03:58]} {[%emt 00:00:01]} Qc7 {[%clk 00:02:33]}
{[%emt 00:00:12]} 19. Rd2 {[%clk 00:03:28]} {[%emt 00:00:33]} Qc4 {[%clk
00:01:42]} {[%emt 00:00:54]} 20. g3 {[%clk 00:02:42]} {[%emt 00:00:49]} Qxd5
{[%clk 00:01:32]} {[%emt 00:00:13]} 21. Rxd5 {[%clk 00:02:43]} {[%emt
00:00:01]} Rc4 {[%clk 00:01:31]} {[%emt 00:00:05]} 22. Re1 {[%clk 00:02:43]}
{[%emt 00:00:02]} Kd7 {[%clk 00:01:25]} {[%emt 00:00:10]} 23. Nd2 {[%clk
00:02:11]} {[%emt 00:00:34]} Rc6 {[%clk 00:01:16]} {[%emt 00:00:13]} 24. b3
{[%clk 00:02:05]} {[%emt 00:00:09]} Rc3 {[%clk 00:00:26]} {[%emt 00:00:53]} 25.
Nc4 {[%clk 00:02:07]} Rxg3 {[%clk 00:00:17]} {[%emt 00:00:12]} 26. Nxe5+ {[%clk
00:02:07]} {[%emt 00:00:02]} Kc7 {[%clk 00:00:19]} {[%emt 00:00:02]} 27. Red1
{[%clk 00:01:39]} {[%emt 00:00:30]} f6 {[%clk 00:00:13]} {[%emt 00:00:10]} 28.
Nc4 {[%clk 00:01:34]} {[%emt 00:00:08]} Rd8 {[%clk 00:00:14]} {[%emt 00:00:03]}
29. h5 {[%clk 00:01:02]} {[%emt 00:00:34]} Rh3 {[%clk 00:00:14]} {[%emt
00:00:03]} 30. Rg1 {[%clk 00:01:03]} {[%emt 00:00:02]} Bf8 {[%clk 00:00:17]} 31.
Rd4 {[%clk 00:00:48]} {[%emt 00:00:19]} Rxh5 {[%clk 00:00:18]} {[%emt
00:00:02]} 32. Ne3 {[%clk 00:00:50]} Re8 {[%clk 00:00:19]} {[%emt 00:00:03]} 33.
Nd5+ {[%clk 00:00:48]} {[%emt 00:00:04]} Kc8 {[%clk 00:00:20]} {[%emt
00:00:03]} 34. Rxb4 {[%clk 00:00:48]} {[%emt 00:00:03]} Rh4 {[%clk 00:00:21]}
{[%emt 00:00:01]} 35. Rg3 {[%clk 00:00:44]} {[%emt 00:00:06]} Kd7 {[%clk
00:00:12]} {[%emt 00:00:13]} 36. Rb7+ {[%clk 00:00:43]} {[%emt 00:00:04]} 1-0

[Event "7° Rencontres Internationales des Echecs Francophones"]
[Site "PARIS, France"]
[Date "2019.08.10"]
[Round "7.10"]
[White "Huynh, Laurent"]
[Black "Prie, Eric"]
[Result "1-0"]
[TimeControl "90'+30' + 30seconds/move"]
[WhiteElo "2135"]
[BlackElo "2439"]

1. d4 {[%clk 00:05:04]} {[%emt 00:00:01]} Nf6 {[%clk 00:05:05]} {[%emt
00:00:02]} 2. Nf3 {[%clk 00:05:05]} {[%emt 00:00:02]} c5 {[%clk 00:05:07]} 3.
e3 {[%clk 00:05:06]} {[%emt 00:00:03]} g6 {[%clk 00:05:05]} {[%emt 00:00:05]} 4.
Be2 {[%clk 00:05:05]} {[%emt 00:00:03]} Bg7 {[%clk 00:05:06]} {[%emt 00:00:02]}
5. O-O {[%clk 00:05:05]} {[%emt 00:00:02]} O-O {[%clk 00:05:07]} {[%emt
00:00:03]} 6. Nbd2 {[%clk 00:04:59]} {[%emt 00:00:09]} b6 {[%clk 00:05:02]}
{[%emt 00:00:08]} 7. b3 {[%clk 00:04:59]} {[%emt 00:00:03]} Bb7 {[%clk
00:05:02]} {[%emt 00:00:03]} 8. Bb2 {[%clk 00:05:00]} {[%emt 00:00:01]} Nc6
{[%clk 00:04:48]} {[%emt 00:00:18]} 9. c4 {[%clk 00:04:49]} {[%emt 00:00:14]}
cxd4 {[%clk 00:04:45]} {[%emt 00:00:06]} 10. exd4 {[%clk 00:04:50]} {[%emt
00:00:02]} d5 {[%clk 00:04:47]} 11. Rc1 {[%clk 00:04:39]} {[%emt 00:00:15]} Rc8
{[%clk 00:04:19]} {[%emt 00:00:32]} 12. Re1 {[%clk 00:04:16]} {[%emt 00:00:26]}
Re8 {[%clk 00:03:52]} {[%emt 00:00:30]} 13. a3 {[%clk 00:03:51]} {[%emt
00:00:28]} e6 {[%clk 00:03:05]} {[%emt 00:00:50]} 14. Bf1 {[%clk 00:03:46]}
{[%emt 00:00:08]} Ne7 {[%clk 00:02:33]} {[%emt 00:00:35]} 15. c5 {[%clk
00:03:41]} {[%emt 00:00:08]} Ne4 {[%clk 00:02:31]} {[%emt 00:00:05]} 16. Ne5
{[%clk 00:03:17]} {[%emt 00:00:27]} bxc5 {[%clk 00:02:29]} {[%emt 00:00:05]} 17.
Nxe4 {[%clk 00:03:14]} {[%emt 00:00:05]} dxe4 {[%clk 00:02:25]} {[%emt
00:00:08]} 18. Bb5 {[%clk 00:03:08]} {[%emt 00:00:10]} Rf8 {[%clk 00:01:32]}
{[%emt 00:00:56]} 19. dxc5 {[%clk 00:02:40]} {[%emt 00:00:31]} Bd5 {[%clk
00:01:17]} {[%emt 00:00:17]} 20. Bd4 {[%clk 00:02:05]} {[%emt 00:00:38]} Qc7
{[%clk 00:01:13]} {[%emt 00:00:07]} 21. Ng4 {[%clk 00:01:57]} {[%emt 00:00:11]}
e5 {[%clk 00:01:11]} {[%emt 00:00:05]} 22. Bb2 {[%clk 00:01:47]} {[%emt
00:00:12]} Bc6 {[%clk 00:01:12]} {[%emt 00:00:03]} 23. Bxc6 {[%clk 00:01:28]}
{[%emt 00:00:22]} Nxc6 {[%clk 00:01:13]} {[%emt 00:00:02]} 24. Qd5 {[%clk
00:01:30]} {[%emt 00:00:01]} Kh8 {[%clk 00:01:10]} {[%emt 00:00:06]} 25. Ne3
{[%clk 00:01:16]} {[%emt 00:00:16]} f5 {[%clk 00:01:10]} {[%emt 00:00:03]} 26.
Nc4 {[%clk 00:01:07]} {[%emt 00:00:13]} Nd4 {[%clk 00:01:04]} {[%emt 00:00:09]}
27. Nd6 {[%clk 00:01:00]} {[%emt 00:00:10]} Rcd8 {[%clk 00:01:04]} {[%emt
00:00:03]} 28. b4 {[%clk 00:00:46]} {[%emt 00:00:17]} Qe7 {[%clk 00:01:01]}
{[%emt 00:00:06]} 29. Kh1 {[%clk 00:00:42]} {[%emt 00:00:08]} h5 {[%clk
00:00:57]} {[%emt 00:00:07]} 30. a4 {[%clk 00:00:39]} {[%emt 00:00:07]} Kh7
{[%clk 00:00:58]} {[%emt 00:00:04]} 31. b5 {[%clk 00:00:34]} {[%emt 00:00:05]}
Qh4 {[%clk 00:00:53]} {[%emt 00:00:07]} 32. Rf1 {[%clk 00:00:22]} {[%emt
00:00:16]} Ne2 {[%clk 00:00:48]} {[%emt 00:00:05]} 33. Rc2 {[%clk 00:00:20]}
{[%emt 00:00:05]} Nf4 {[%clk 00:00:52]} {[%emt 00:00:02]} 34. Qd1 {[%clk
00:00:16]} {[%emt 00:00:07]} Qg5 {[%clk 00:00:42]} {[%emt 00:00:13]} 35. f3
{[%clk 00:00:14]} {[%emt 00:00:06]} e3 {[%clk 00:00:41]} {[%emt 00:00:03]} 36.
g3 {[%clk 00:00:14]} {[%emt 00:00:03]} Nh3 {[%clk 00:00:35]} {[%emt 00:00:09]}
37. Qe2 {[%clk 00:00:09]} {[%emt 00:00:09]} f4 {[%clk 00:00:35]} {[%emt
00:00:03]} 38. Qg2 {[%clk 00:00:10]} {[%emt 00:00:03]} Nf2+ {[%clk 00:00:34]}
{[%emt 00:00:03]} 39. Rcxf2 {[%clk 00:00:09]} {[%emt 00:00:04]} exf2 {[%clk
00:00:35]} {[%emt 00:00:02]} 40. Ne4 {[%clk 00:00:05]} {[%emt 00:00:07]} Qf5
{[%clk 00:00:25]} {[%emt 00:00:12]} 41. g4 {[%clk 00:00:05]} {[%emt 00:00:04]}
hxg4 {[%clk 00:00:25]} {[%emt 00:00:03]} 42. fxg4 {[%clk 00:00:07]} {[%emt
00:00:02]} f3 {[%clk 00:00:25]} {[%emt 00:00:03]} 43. Qh3+ {[%clk 00:00:09]}
Kg8 {[%clk 00:00:22]} {[%emt 00:00:05]} 44. gxf5 {[%clk 00:00:11]} gxf5 {[%clk
00:00:22]} {[%emt 00:00:04]} 45. Nd6 {[%clk 00:00:13]} {[%emt 00:00:01]} e4
{[%clk 00:00:10]} {[%emt 00:00:14]} 46. Bxg7 {[%clk 00:00:14]} {[%emt
00:00:01]} Kxg7 {[%clk 00:00:12]} {[%emt 00:00:02]} 47. Qg3+ {[%clk 00:00:16]}
{[%emt 00:00:01]} Kf6 {[%clk 00:00:13]} {[%emt 00:00:02]} 48. Qxf2 {[%clk
00:00:16]} {[%emt 00:00:03]} Rg8 {[%clk 00:00:12]} {[%emt 00:00:04]} 49. Qd4+
{[%clk 00:00:17]} {[%emt 00:00:02]} Ke6 {[%clk 00:00:14]} 50. Qc4+ {[%clk
00:00:17]} {[%emt 00:00:04]} Ke5 {[%clk 00:00:15]} {[%emt 00:00:02]} 51. Nf7+
{[%clk 00:00:18]} Kf4 {[%clk 00:00:17]} {[%emt 00:00:02]} 52. Nxd8 {[%clk
00:00:15]} {[%emt 00:00:07]} Rxd8 {[%clk 00:00:18]} {[%emt 00:00:01]} 53. c6
{[%clk 00:00:16]} {[%emt 00:00:02]} 1-0